Workbook

Sheet Sheet1
A1: Expense | B1: One Person | C1: Two Persons | D1: Three Persons | E1: Four Persons | I1: Under 65 | J1: 83 | N1: Public Transp | O1: Allowed Amount
A2: Food | B2: 458 | C2: 820 | D2: 977 | E2: 1143 | I2: 65 and Older | J2: 158 | N2: National | O2: 215
A3: Housekeeping supplies | B3: 44 | C3: 75 | D3: 83 | E3: 82 | N3: Ownership Costs
A4: Apparel & services | B4: 87 | C4: 157 | D4: 187 | E4: 300 | N4: Location | O4: One Car | P4: Two Cars
A5: Personal care products & services | B5: 48 | C5: 80 | D5: 87 | E5: 97 | N5: National | O5: 619 | P5: 1238
A6: Miscellaneous | B6: 171 | C6: 279 | D6: 343 | E6: 405
A7: Total | B7: 808 | C7: 1411 | D7: 1677 | E7: 2027
A8: For each additional person, add to four-person total allowance: | B8: 386 | N8: South Region Operating Costs
N9: Location | O9: One Car | P9: Two Cars
N10: South Region | O10: 260 | P10: 520

Sheet Sheet2
A1: County | B1: 2024 | C1: 2024 | D1: 2024 | E1: 2024 | F1: 2024
B2: Published | C2: Published | D2: Published | E2: Published ALE Housing Expense for a Family of 4 | F2: Published
B3: ALE Housing Expense for a Family of 1 | C3: ALE Housing Expense for a Family of 2 | D3: ALE Housing Expense for a Family of 3 | E3: ALE Housing Expense for a Family of 4 | F3: ALE Housing Expense for a Family of 5 or more
A4: Anderson County | B4: 1523 | C4: 1789 | D4: 1885 | E4: 2102 | F4: 2136
A5: Bedford County | B5: 1429 | C5: 1678 | D5: 1768 | E5: 1971 | F5: 2003
A6: Benton County | B6: 1260 | C6: 1480 | D6: 1560 | E6: 1739 | F6: 1767
A7: Bledsoe County | B7: 1257 | C7: 1477 | D7: 1556 | E7: 1735 | F7: 1763
A8: Blount County | B8: 1569 | C8: 1843 | D8: 1942 | E8: 2165 | F8: 2200
A9: Bradley County | B9: 1497 | C9: 1758 | D9: 1853 | E9: 2066 | F9: 2099
A10: Campbell County | B10: 1315 | C10: 1544 | D10: 1627 | E10: 1814 | F10: 1843
A11: Cannon County | B11: 1486 | C11: 1745 | D11: 1839 | E11: 2050 | F11: 2084
A12: Carroll County | B12: 1265 | C12: 1486 | D12: 1566 | E12: 1746 | F12: 1774
A13: Carter County | B13: 1257 | C13: 1477 | D13: 1556 | E13: 1735 | F13: 1763
A14: Cheatham County | B14: 1724 | C14: 2025 | D14: 2134 | E14: 2379 | F14: 2418
A15: Chester County | B15: 1316 | C15: 1546 | D15: 1629 | E15: 1816 | F15: 1846
A16: Claiborne County | B16: 1238 | C16: 1454 | D16: 1532 | E16: 1708 | F16: 1736
A17: Clay County | B17: 1235 | C17: 1450 | D17: 1528 | E17: 1704 | F17: 1731
A18: Cocke County | B18: 1232 | C18: 1447 | D18: 1525 | E18: 1700 | F18: 1728
A19: Coffee County | B19: 1479 | C19: 1738 | D19: 1831 | E19: 2042 | F19: 2075
A20: Crockett County | B20: 1266 | C20: 1487 | D20: 1567 | E20: 1747 | F20: 1775
A21: Cumberland County | B21: 1298 | C21: 1524 | D21: 1606 | E21: 1791 | F21: 1820
A22: Davidson County | B22: 1845 | C22: 2167 | D22: 2283 | E22: 2546 | F22: 2587
A23: Decatur County | B23: 1311 | C23: 1539 | D23: 1622 | E23: 1809 | F23: 1838
A24: DeKalb County | B24: 1340 | C24: 1574 | D24: 1659 | E24: 1850 | F24: 1880
A25: Dickson County | B25: 1566 | C25: 1839 | D25: 1938 | E25: 2161 | F25: 2196
A26: Dyer County | B26: 1358 | C26: 1595 | D26: 1681 | E26: 1874 | F26: 1905
A27: Fayette County | B27: 1705 | C27: 2002 | D27: 2110 | E27: 2353 | F27: 2391
A28: Fentress County | B28: 1167 | C28: 1370 | D28: 1444 | E28: 1610 | F28: 1636
A29: Franklin County | B29: 1466 | C29: 1721 | D29: 1814 | E29: 2023 | F29: 2055
A30: Gibson County | B30: 1408 | C30: 1653 | D30: 1742 | E30: 1942 | F30: 1974
A31: Giles County | B31: 1402 | C31: 1647 | D31: 1735 | E31: 1935 | F31: 1966
A32: Grainger County | B32: 1340 | C32: 1574 | D32: 1659 | E32: 1850 | F32: 1880
A33: Greene County | B33: 1285 | C33: 1509 | D33: 1590 | E33: 1773 | F33: 1801
A34: Grundy County | B34: 1205 | C34: 1415 | D34: 1491 | E34: 1662 | F34: 1689
A35: Hamblen County | B35: 1314 | C35: 1543 | D35: 1626 | E35: 1813 | F35: 1842
A36: Hamilton County | B36: 1593 | C36: 1870 | D36: 1971 | E36: 2198 | F36: 2233
A37: Hancock County | B37: 1271 | C37: 1493 | D37: 1573 | E37: 1754 | F37: 1782
A38: Hardeman County | B38: 1227 | C38: 1442 | D38: 1519 | E38: 1694 | F38: 1721
A39: Hardin County | B39: 1201 | C39: 1410 | D39: 1486 | E39: 1657 | F39: 1684
A40: Hawkins County | B40: 1304 | C40: 1532 | D40: 1614 | E40: 1800 | F40: 1829
A41: Haywood County | B41: 1311 | C41: 1540 | D41: 1623 | E41: 1810 | F41: 1839
A42: Henderson County | B42: 1256 | C42: 1475 | D42: 1554 | E42: 1733 | F42: 1761
A43: Henry County | B43: 1292 | C43: 1517 | D43: 1599 | E43: 1783 | F43: 1812
A44: Hickman County | B44: 1408 | C44: 1653 | D44: 1742 | E44: 1942 | F44: 1974
A45: Houston County | B45: 1401 | C45: 1646 | D45: 1734 | E45: 1933 | F45: 1965
A46: Humphreys County | B46: 1374 | C46: 1614 | D46: 1701 | E46: 1897 | F46: 1927
A47: Jackson County | B47: 1277 | C47: 1499 | D47: 1580 | E47: 1762 | F47: 1790
A48: Jefferson County | B48: 1360 | C48: 1597 | D48: 1683 | E48: 1877 | F48: 1907
A49: Johnson County | B49: 1178 | C49: 1384 | D49: 1458 | E49: 1626 | F49: 1652
A50: Knox County | B50: 1609 | C50: 1889 | D50: 1991 | E50: 2220 | F50: 2256
A51: Lake County | B51: 1282 | C51: 1506 | D51: 1587 | E51: 1770 | F51: 1798
A52: Lauderdale County | B52: 1240 | C52: 1457 | D52: 1535 | E52: 1712 | F52: 1739
A53: Lawrence County | B53: 1378 | C53: 1619 | D53: 1706 | E53: 1902 | F53: 1933
A54: Lewis County | B54: 1319 | C54: 1549 | D54: 1632 | E54: 1820 | F54: 1849
A55: Lincoln County | B55: 1404 | C55: 1649 | D55: 1738 | E55: 1938 | F55: 1969
A56: Loudon County | B56: 1551 | C56: 1821 | D56: 1919 | E56: 2140 | F56: 2174
A57: McMinn County | B57: 1329 | C57: 1561 | D57: 1645 | E57: 1834 | F57: 1864
A58: McNairy County | B58: 1272 | C58: 1494 | D58: 1574 | E58: 1755 | F58: 1783
A59: Macon County | B59: 1445 | C59: 1697 | D59: 1788 | E59: 1994 | F59: 2026
A60: Madison County | B60: 1488 | C60: 1748 | D60: 1842 | E60: 2054 | F60: 2087
A61: Marion County | B61: 1407 | C61: 1652 | D61: 1741 | E61: 1941 | F61: 1973
A62: Marshall County | B62: 1467 | C62: 1723 | D62: 1816 | E62: 2025 | F62: 2058
A63: Maury County | B63: 1638 | C63: 1924 | D63: 2027 | E63: 2260 | F63: 2297
A64: Meigs County | B64: 1323 | C64: 1554 | D64: 1637 | E64: 1825 | F64: 1855
A65: Monroe County | B65: 1356 | C65: 1592 | D65: 1678 | E65: 1871 | F65: 1901
A66: Montgomery County | B66: 1597 | C66: 1876 | D66: 1977 | E66: 2204 | F66: 2240
A67: Moore County | B67: 1612 | C67: 1893 | D67: 1995 | E67: 2224 | F67: 2260
A68: Morgan County | B68: 1331 | C68: 1563 | D68: 1647 | E68: 1836 | F68: 1866
A69: Obion County | B69: 1202 | C69: 1412 | D69: 1488 | E69: 1659 | F69: 1686
A70: Overton County | B70: 1297 | C70: 1523 | D70: 1605 | E70: 1790 | F70: 1818
A71: Perry County | B71: 1256 | C71: 1476 | D71: 1555 | E71: 1734 | F71: 1762
A72: Pickett County | B72: 1307 | C72: 1535 | D72: 1617 | E72: 1803 | F72: 1832
A73: Polk County | B73: 1302 | C73: 1530 | D73: 1612 | E73: 1797 | F73: 1826
A74: Putnam County | B74: 1471 | C74: 1727 | D74: 1820 | E74: 2029 | F74: 2062
A75: Rhea County | B75: 1378 | C75: 1618 | D75: 1705 | E75: 1901 | F75: 1932
A76: Roane County | B76: 1502 | C76: 1764 | D76: 1859 | E76: 2073 | F76: 2106
A77: Robertson County | B77: 1694 | C77: 1989 | D77: 2096 | E77: 2337 | F77: 2375
A78: Rutherford County | B78: 1750 | C78: 2056 | D78: 2166 | E78: 2415 | F78: 2454
A79: Scott County | B79: 1245 | C79: 1462 | D79: 1541 | E79: 1718 | F79: 1746
A80: Sequatchie County | B80: 1448 | C80: 1701 | D80: 1792 | E80: 1998 | F80: 2030
A81: Sevier County | B81: 1479 | C81: 1738 | D81: 1831 | E81: 2042 | F81: 2075
A82: Shelby County | B82: 1715 | C82: 2014 | D82: 2122 | E82: 2366 | F82: 2404
A83: Smith County | B83: 1422 | C83: 1670 | D83: 1760 | E83: 1962 | F83: 1994
A84: Stewart County | B84: 1429 | C84: 1679 | D84: 1769 | E84: 1972 | F84: 2004
A85: Sullivan County | B85: 1381 | C85: 1622 | D85: 1709 | E85: 1906 | F85: 1936
A86: Sumner County | B86: 1802 | C86: 2116 | D86: 2230 | E86: 2486 | F86: 2527
A87: Tipton County | B87: 1550 | C87: 1820 | D87: 1918 | E87: 2139 | F87: 2173
A88: Trousdale County | B88: 1501 | C88: 1763 | D88: 1858 | E88: 2072 | F88: 2105
A89: Unicoi County | B89: 1275 | C89: 1498 | D89: 1578 | E89: 1759 | F89: 1788
A90: Union County | B90: 1336 | C90: 1569 | D90: 1653 | E90: 1843 | F90: 1873
A91: Van Buren County | B91: 1100 | C91: 1292 | D91: 1361 | E91: 1518 | F91: 1542
A92: Warren County | B92: 1264 | C92: 1484 | D92: 1564 | E92: 1744 | F92: 1772
A93: Washington County | B93: 1495 | C93: 1756 | D93: 1850 | E93: 2063 | F93: 2096
A94: Wayne County | B94: 1179 | C94: 1385 | D94: 1459 | E94: 1627 | F94: 1653
A95: Weakley County | B95: 1209 | C95: 1420 | D95: 1496 | E95: 1668 | F95: 1695
A96: White County | B96: 1307 | C96: 1535 | D96: 1618 | E96: 1804 | F96: 1833
A97: Williamson County | B97: 2482 | C97: 2915 | D97: 3072 | E97: 3425 | F97: 3481
A98: Wilson County | B98: 1931 | C98: 2268 | D98: 2390 | E98: 2665 | F98: 2708
A100: Related Topic
A102: Local Standards: Housing and Utilities

Sheet Sheet3
A1: 2024 Published ALE
A4: Food, Clothing & Other items
A5: Expense | C5: One Person | D5: Two Persons | E5: Three Persons | F5: Four Persons
A6: Food | C6: =Sheet1!B2 -> 458 | D6: =Sheet1!C2 -> 820 | E6: =Sheet1!D2 -> 977 | F6: =Sheet1!E2 -> 1143
A7: Housekeeping supplies | C7: =Sheet1!B3 -> 44 | D7: =Sheet1!C3 -> 75 | E7: =Sheet1!D3 -> 83 | F7: =Sheet1!E3 -> 82
A8: Apparel & services | C8: =Sheet1!B4 -> 87 | D8: =Sheet1!C4 -> 157 | E8: =Sheet1!D4 -> 187 | F8: =Sheet1!E4 -> 300
A9: Personal care prod's/srvcs | C9: =Sheet1!B5 -> 48 | D9: =Sheet1!C5 -> 80 | E9: =Sheet1!D5 -> 87 | F9: =Sheet1!E5 -> 97
A10: Miscellaneous | C10: =Sheet1!B6 -> 171 | D10: =Sheet1!C6 -> 279 | E10: =Sheet1!D6 -> 343 | F10: =Sheet1!E6 -> 405
A11: Total | C11: =Sheet1!B7 -> 808 | D11: =Sheet1!C7 -> 1411 | E11: =Sheet1!D7 -> 1677 | F11: =Sheet1!E7 -> 2027
A12: ="For each additional person, add to four-person total allowance: $"&Sheet1!B8 -> For each additional person, add to four-person total allowance: $386
A14: Housing Expense for a Family of:
A15: County | B15: 1 | C15: 2 | D15: 3 | E15: 4 | F15: 5 (+)
A16: Anderson | B16: =_xlfn.XLOOKUP($A16&" County",Sheet2!$A$4:$A$98,Sheet2!B$4:B$98) -> 1523 | C16: =_xlfn.XLOOKUP($A16&" County",Sheet2!$A$4:$A$98,Sheet2!C$4:C$98) -> 1789 | D16: =_xlfn.XLOOKUP($A16&" County",Sheet2!$A$4:$A$98,Sheet2!D$4:D$98) -> 1885 | E16: =_xlfn.XLOOKUP($A16&" County",Sheet2!$A$4:$A$98,Sheet2!E$4:E$98) -> 2102 | F16: =_xlfn.XLOOKUP($A16&" County",Sheet2!$A$4:$A$98,Sheet2!F$4:F$98) -> 2136
A17: Blount | B17: =_xlfn.XLOOKUP($A17&" County",Sheet2!$A$4:$A$98,Sheet2!B$4:B$98) -> 1569 | C17: =_xlfn.XLOOKUP($A17&" County",Sheet2!$A$4:$A$98,Sheet2!C$4:C$98) -> 1843 | D17: =_xlfn.XLOOKUP($A17&" County",Sheet2!$A$4:$A$98,Sheet2!D$4:D$98) -> 1942 | E17: =_xlfn.XLOOKUP($A17&" County",Sheet2!$A$4:$A$98,Sheet2!E$4:E$98) -> 2165 | F17: =_xlfn.XLOOKUP($A17&" County",Sheet2!$A$4:$A$98,Sheet2!F$4:F$98) -> 2200
A18: Bradley | B18: =_xlfn.XLOOKUP($A18&" County",Sheet2!$A$4:$A$98,Sheet2!B$4:B$98) -> 1497 | C18: =_xlfn.XLOOKUP($A18&" County",Sheet2!$A$4:$A$98,Sheet2!C$4:C$98) -> 1758 | D18: =_xlfn.XLOOKUP($A18&" County",Sheet2!$A$4:$A$98,Sheet2!D$4:D$98) -> 1853 | E18: =_xlfn.XLOOKUP($A18&" County",Sheet2!$A$4:$A$98,Sheet2!E$4:E$98) -> 2066 | F18: =_xlfn.XLOOKUP($A18&" County",Sheet2!$A$4:$A$98,Sheet2!F$4:F$98) -> 2099
A19: Cumberland | B19: =_xlfn.XLOOKUP($A19&" County",Sheet2!$A$4:$A$98,Sheet2!B$4:B$98) -> 1298 | C19: =_xlfn.XLOOKUP($A19&" County",Sheet2!$A$4:$A$98,Sheet2!C$4:C$98) -> 1524 | D19: =_xlfn.XLOOKUP($A19&" County",Sheet2!$A$4:$A$98,Sheet2!D$4:D$98) -> 1606 | E19: =_xlfn.XLOOKUP($A19&" County",Sheet2!$A$4:$A$98,Sheet2!E$4:E$98) -> 1791 | F19: =_xlfn.XLOOKUP($A19&" County",Sheet2!$A$4:$A$98,Sheet2!F$4:F$98) -> 1820
A20: Davidson | B20: =_xlfn.XLOOKUP($A20&" County",Sheet2!$A$4:$A$98,Sheet2!B$4:B$98) -> 1845 | C20: =_xlfn.XLOOKUP($A20&" County",Sheet2!$A$4:$A$98,Sheet2!C$4:C$98) -> 2167 | D20: =_xlfn.XLOOKUP($A20&" County",Sheet2!$A$4:$A$98,Sheet2!D$4:D$98) -> 2283 | E20: =_xlfn.XLOOKUP($A20&" County",Sheet2!$A$4:$A$98,Sheet2!E$4:E$98) -> 2546 | F20: =_xlfn.XLOOKUP($A20&" County",Sheet2!$A$4:$A$98,Sheet2!F$4:F$98) -> 2587
A21: DeKalb | B21: =_xlfn.XLOOKUP($A21&" County",Sheet2!$A$4:$A$98,Sheet2!B$4:B$98) -> 1340 | C21: =_xlfn.XLOOKUP($A21&" County",Sheet2!$A$4:$A$98,Sheet2!C$4:C$98) -> 1574 | D21: =_xlfn.XLOOKUP($A21&" County",Sheet2!$A$4:$A$98,Sheet2!D$4:D$98) -> 1659 | E21: =_xlfn.XLOOKUP($A21&" County",Sheet2!$A$4:$A$98,Sheet2!E$4:E$98) -> 1850 | F21: =_xlfn.XLOOKUP($A21&" County",Sheet2!$A$4:$A$98,Sheet2!F$4:F$98) -> 1880
A22: Franklin | B22: =_xlfn.XLOOKUP($A22&" County",Sheet2!$A$4:$A$98,Sheet2!B$4:B$98) -> 1466 | C22: =_xlfn.XLOOKUP($A22&" County",Sheet2!$A$4:$A$98,Sheet2!C$4:C$98) -> 1721 | D22: =_xlfn.XLOOKUP($A22&" County",Sheet2!$A$4:$A$98,Sheet2!D$4:D$98) -> 1814 | E22: =_xlfn.XLOOKUP($A22&" County",Sheet2!$A$4:$A$98,Sheet2!E$4:E$98) -> 2023 | F22: =_xlfn.XLOOKUP($A22&" County",Sheet2!$A$4:$A$98,Sheet2!F$4:F$98) -> 2055
A23: Grundy | B23: =_xlfn.XLOOKUP($A23&" County",Sheet2!$A$4:$A$98,Sheet2!B$4:B$98) -> 1205 | C23: =_xlfn.XLOOKUP($A23&" County",Sheet2!$A$4:$A$98,Sheet2!C$4:C$98) -> 1415 | D23: =_xlfn.XLOOKUP($A23&" County",Sheet2!$A$4:$A$98,Sheet2!D$4:D$98) -> 1491 | E23: =_xlfn.XLOOKUP($A23&" County",Sheet2!$A$4:$A$98,Sheet2!E$4:E$98) -> 1662 | F23: =_xlfn.XLOOKUP($A23&" County",Sheet2!$A$4:$A$98,Sheet2!F$4:F$98) -> 1689
A24: Hamilton | B24: =_xlfn.XLOOKUP($A24&" County",Sheet2!$A$4:$A$98,Sheet2!B$4:B$98) -> 1593 | C24: =_xlfn.XLOOKUP($A24&" County",Sheet2!$A$4:$A$98,Sheet2!C$4:C$98) -> 1870 | D24: =_xlfn.XLOOKUP($A24&" County",Sheet2!$A$4:$A$98,Sheet2!D$4:D$98) -> 1971 | E24: =_xlfn.XLOOKUP($A24&" County",Sheet2!$A$4:$A$98,Sheet2!E$4:E$98) -> 2198 | F24: =_xlfn.XLOOKUP($A24&" County",Sheet2!$A$4:$A$98,Sheet2!F$4:F$98) -> 2233
A25: Knox | B25: =_xlfn.XLOOKUP($A25&" County",Sheet2!$A$4:$A$98,Sheet2!B$4:B$98) -> 1609 | C25: =_xlfn.XLOOKUP($A25&" County",Sheet2!$A$4:$A$98,Sheet2!C$4:C$98) -> 1889 | D25: =_xlfn.XLOOKUP($A25&" County",Sheet2!$A$4:$A$98,Sheet2!D$4:D$98) -> 1991 | E25: =_xlfn.XLOOKUP($A25&" County",Sheet2!$A$4:$A$98,Sheet2!E$4:E$98) -> 2220 | F25: =_xlfn.XLOOKUP($A25&" County",Sheet2!$A$4:$A$98,Sheet2!F$4:F$98) -> 2256
A26: Loudon | B26: =_xlfn.XLOOKUP($A26&" County",Sheet2!$A$4:$A$98,Sheet2!B$4:B$98) -> 1551 | C26: =_xlfn.XLOOKUP($A26&" County",Sheet2!$A$4:$A$98,Sheet2!C$4:C$98) -> 1821 | D26: =_xlfn.XLOOKUP($A26&" County",Sheet2!$A$4:$A$98,Sheet2!D$4:D$98) -> 1919 | E26: =_xlfn.XLOOKUP($A26&" County",Sheet2!$A$4:$A$98,Sheet2!E$4:E$98) -> 2140 | F26: =_xlfn.XLOOKUP($A26&" County",Sheet2!$A$4:$A$98,Sheet2!F$4:F$98) -> 2174
A27: McMinn | B27: =_xlfn.XLOOKUP($A27&" County",Sheet2!$A$4:$A$98,Sheet2!B$4:B$98) -> 1329 | C27: =_xlfn.XLOOKUP($A27&" County",Sheet2!$A$4:$A$98,Sheet2!C$4:C$98) -> 1561 | D27: =_xlfn.XLOOKUP($A27&" County",Sheet2!$A$4:$A$98,Sheet2!D$4:D$98) -> 1645 | E27: =_xlfn.XLOOKUP($A27&" County",Sheet2!$A$4:$A$98,Sheet2!E$4:E$98) -> 1834 | F27: =_xlfn.XLOOKUP($A27&" County",Sheet2!$A$4:$A$98,Sheet2!F$4:F$98) -> 1864
A28: Madison | B28: =_xlfn.XLOOKUP($A28&" County",Sheet2!$A$4:$A$98,Sheet2!B$4:B$98) -> 1488 | C28: =_xlfn.XLOOKUP($A28&" County",Sheet2!$A$4:$A$98,Sheet2!C$4:C$98) -> 1748 | D28: =_xlfn.XLOOKUP($A28&" County",Sheet2!$A$4:$A$98,Sheet2!D$4:D$98) -> 1842 | E28: =_xlfn.XLOOKUP($A28&" County",Sheet2!$A$4:$A$98,Sheet2!E$4:E$98) -> 2054 | F28: =_xlfn.XLOOKUP($A28&" County",Sheet2!$A$4:$A$98,Sheet2!F$4:F$98) -> 2087
A29: Marion | B29: =_xlfn.XLOOKUP($A29&" County",Sheet2!$A$4:$A$98,Sheet2!B$4:B$98) -> 1407 | C29: =_xlfn.XLOOKUP($A29&" County",Sheet2!$A$4:$A$98,Sheet2!C$4:C$98) -> 1652 | D29: =_xlfn.XLOOKUP($A29&" County",Sheet2!$A$4:$A$98,Sheet2!D$4:D$98) -> 1741 | E29: =_xlfn.XLOOKUP($A29&" County",Sheet2!$A$4:$A$98,Sheet2!E$4:E$98) -> 1941 | F29: =_xlfn.XLOOKUP($A29&" County",Sheet2!$A$4:$A$98,Sheet2!F$4:F$98) -> 1973
A30: Meigs | B30: =_xlfn.XLOOKUP($A30&" County",Sheet2!$A$4:$A$98,Sheet2!B$4:B$98) -> 1323 | C30: =_xlfn.XLOOKUP($A30&" County",Sheet2!$A$4:$A$98,Sheet2!C$4:C$98) -> 1554 | D30: =_xlfn.XLOOKUP($A30&" County",Sheet2!$A$4:$A$98,Sheet2!D$4:D$98) -> 1637 | E30: =_xlfn.XLOOKUP($A30&" County",Sheet2!$A$4:$A$98,Sheet2!E$4:E$98) -> 1825 | F30: =_xlfn.XLOOKUP($A30&" County",Sheet2!$A$4:$A$98,Sheet2!F$4:F$98) -> 1855
A31: Monroe | B31: =_xlfn.XLOOKUP($A31&" County",Sheet2!$A$4:$A$98,Sheet2!B$4:B$98) -> 1356 | C31: =_xlfn.XLOOKUP($A31&" County",Sheet2!$A$4:$A$98,Sheet2!C$4:C$98) -> 1592 | D31: =_xlfn.XLOOKUP($A31&" County",Sheet2!$A$4:$A$98,Sheet2!D$4:D$98) -> 1678 | E31: =_xlfn.XLOOKUP($A31&" County",Sheet2!$A$4:$A$98,Sheet2!E$4:E$98) -> 1871 | F31: =_xlfn.XLOOKUP($A31&" County",Sheet2!$A$4:$A$98,Sheet2!F$4:F$98) -> 1901
A32: Polk | B32: =_xlfn.XLOOKUP($A32&" County",Sheet2!$A$4:$A$98,Sheet2!B$4:B$98) -> 1302 | C32: =_xlfn.XLOOKUP($A32&" County",Sheet2!$A$4:$A$98,Sheet2!C$4:C$98) -> 1530 | D32: =_xlfn.XLOOKUP($A32&" County",Sheet2!$A$4:$A$98,Sheet2!D$4:D$98) -> 1612 | E32: =_xlfn.XLOOKUP($A32&" County",Sheet2!$A$4:$A$98,Sheet2!E$4:E$98) -> 1797 | F32: =_xlfn.XLOOKUP($A32&" County",Sheet2!$A$4:$A$98,Sheet2!F$4:F$98) -> 1826
A33: Rhea | B33: =_xlfn.XLOOKUP($A33&" County",Sheet2!$A$4:$A$98,Sheet2!B$4:B$98) -> 1378 | C33: =_xlfn.XLOOKUP($A33&" County",Sheet2!$A$4:$A$98,Sheet2!C$4:C$98) -> 1618 | D33: =_xlfn.XLOOKUP($A33&" County",Sheet2!$A$4:$A$98,Sheet2!D$4:D$98) -> 1705 | E33: =_xlfn.XLOOKUP($A33&" County",Sheet2!$A$4:$A$98,Sheet2!E$4:E$98) -> 1901 | F33: =_xlfn.XLOOKUP($A33&" County",Sheet2!$A$4:$A$98,Sheet2!F$4:F$98) -> 1932
A34: Roane | B34: =_xlfn.XLOOKUP($A34&" County",Sheet2!$A$4:$A$98,Sheet2!B$4:B$98) -> 1502 | C34: =_xlfn.XLOOKUP($A34&" County",Sheet2!$A$4:$A$98,Sheet2!C$4:C$98) -> 1764 | D34: =_xlfn.XLOOKUP($A34&" County",Sheet2!$A$4:$A$98,Sheet2!D$4:D$98) -> 1859 | E34: =_xlfn.XLOOKUP($A34&" County",Sheet2!$A$4:$A$98,Sheet2!E$4:E$98) -> 2073 | F34: =_xlfn.XLOOKUP($A34&" County",Sheet2!$A$4:$A$98,Sheet2!F$4:F$98) -> 2106
A35: Rutherford | B35: =_xlfn.XLOOKUP($A35&" County",Sheet2!$A$4:$A$98,Sheet2!B$4:B$98) -> 1750 | C35: =_xlfn.XLOOKUP($A35&" County",Sheet2!$A$4:$A$98,Sheet2!C$4:C$98) -> 2056 | D35: =_xlfn.XLOOKUP($A35&" County",Sheet2!$A$4:$A$98,Sheet2!D$4:D$98) -> 2166 | E35: =_xlfn.XLOOKUP($A35&" County",Sheet2!$A$4:$A$98,Sheet2!E$4:E$98) -> 2415 | F35: =_xlfn.XLOOKUP($A35&" County",Sheet2!$A$4:$A$98,Sheet2!F$4:F$98) -> 2454
A36: Sequatchie | B36: =_xlfn.XLOOKUP($A36&" County",Sheet2!$A$4:$A$98,Sheet2!B$4:B$98) -> 1448 | C36: =_xlfn.XLOOKUP($A36&" County",Sheet2!$A$4:$A$98,Sheet2!C$4:C$98) -> 1701 | D36: =_xlfn.XLOOKUP($A36&" County",Sheet2!$A$4:$A$98,Sheet2!D$4:D$98) -> 1792 | E36: =_xlfn.XLOOKUP($A36&" County",Sheet2!$A$4:$A$98,Sheet2!E$4:E$98) -> 1998 | F36: =_xlfn.XLOOKUP($A36&" County",Sheet2!$A$4:$A$98,Sheet2!F$4:F$98) -> 2030
A37: Sevier | B37: =_xlfn.XLOOKUP($A37&" County",Sheet2!$A$4:$A$98,Sheet2!B$4:B$98) -> 1479 | C37: =_xlfn.XLOOKUP($A37&" County",Sheet2!$A$4:$A$98,Sheet2!C$4:C$98) -> 1738 | D37: =_xlfn.XLOOKUP($A37&" County",Sheet2!$A$4:$A$98,Sheet2!D$4:D$98) -> 1831 | E37: =_xlfn.XLOOKUP($A37&" County",Sheet2!$A$4:$A$98,Sheet2!E$4:E$98) -> 2042 | F37: =_xlfn.XLOOKUP($A37&" County",Sheet2!$A$4:$A$98,Sheet2!F$4:F$98) -> 2075
A38: Shelby | B38: =_xlfn.XLOOKUP($A38&" County",Sheet2!$A$4:$A$98,Sheet2!B$4:B$98) -> 1715 | C38: =_xlfn.XLOOKUP($A38&" County",Sheet2!$A$4:$A$98,Sheet2!C$4:C$98) -> 2014 | D38: =_xlfn.XLOOKUP($A38&" County",Sheet2!$A$4:$A$98,Sheet2!D$4:D$98) -> 2122 | E38: =_xlfn.XLOOKUP($A38&" County",Sheet2!$A$4:$A$98,Sheet2!E$4:E$98) -> 2366 | F38: =_xlfn.XLOOKUP($A38&" County",Sheet2!$A$4:$A$98,Sheet2!F$4:F$98) -> 2404
A39: Union | B39: =_xlfn.XLOOKUP($A39&" County",Sheet2!$A$4:$A$98,Sheet2!B$4:B$98) -> 1336 | C39: =_xlfn.XLOOKUP($A39&" County",Sheet2!$A$4:$A$98,Sheet2!C$4:C$98) -> 1569 | D39: =_xlfn.XLOOKUP($A39&" County",Sheet2!$A$4:$A$98,Sheet2!D$4:D$98) -> 1653 | E39: =_xlfn.XLOOKUP($A39&" County",Sheet2!$A$4:$A$98,Sheet2!E$4:E$98) -> 1843 | F39: =_xlfn.XLOOKUP($A39&" County",Sheet2!$A$4:$A$98,Sheet2!F$4:F$98) -> 1873
A42: Transportation | E42: Out-of-Pocket Health Care
A43: Public Transportation | C43: Allowed | F43: Under 65 | H43: =Sheet1!J1 -> 83
A44: National | C44: =Sheet1!O2 -> 215 | F44: 65 and Older | H44: =Sheet1!J2 -> 158
A46: South Region | B46: One Car | C46: Two Cars
A47: Ownership Costs | B47: =Sheet1!O5 -> 619 | C47: =Sheet1!P5 -> 1238
A49: Operating Costs | B49: =Sheet1!O10 -> 260 | C49: =Sheet1!P10 -> 520
